Cogmind - Beta 9.6 @@@ ROGUE MODE // 2020.08.29 @ 14:56:35 Player: octapi Result: Destroyed by D-53 Grenadier with Mini Grenade Launcher Performance ------------- Evolutions (0) 0 Regions Visited (2) 400 Robots Destroyed (15) 75 Value Destroyed (197) 197 Prototype IDs (3) 60 Alien Tech Used (0) 0 Bonus (-14) -14 TOTAL SCORE: 718 Bonus ------- Friendly Fire -14 Cogmind --------- Core Integrity 0/250 Matter 289/300 Energy 58/100 System Corruption 4% Temperature Cool (0) Movement Rolling (110) Ox2 Location -10/Mines Parts ------- > --- POWER (1) -------- (None) > --- PROPULSION (2) --- Armored Wheel > --- UTILITY (2) ------ High-capacity Storage Unit > --- WEAPON (2) ------- (None) > --- INVENTORY (12) --- Light Ion Engine Light Nuclear Core Aluminum Leg Aluminum Leg Compact Wheel Improved Heat Sink High-capacity Storage Unit High-capacity Battery (400) Improved Targeting Computer Peak State ------------ > --- POWER ------------ Improved Ion Engine > --- PROPULSION ------- Light Treads Light Treads > --- UTILITY ---------- High-capacity Storage Unit High-capacity Storage Unit > --- WEAPON ----------- Beam Rifle Heavy Assault Rifle > --- INVENTORY -------- Light Ion Engine Light Nuclear Core Aluminum Leg Aluminum Leg Compact Wheel Armored Wheel Improved Heat Sink High-capacity Battery Improved Targeting Computer Light Armor Plating Medium Laser Medium Laser Small Laser Light Assault Rifle [Rating: 12] Favorites ----------- Power Light Ion Engine Engine Light Ion Engine Propulsion Light Treads Treads Light Treads Leg Aluminum Leg Wheel Armored Wheel Utility High-capacity Storage Unit Storage High-capacity Storage Unit Protection Light Armor Plating Weapon Light Assault Rifle Energy Gun Small Laser Ballistic Gun Light Assault Rifle Build | -11 -10 -10 ------- Run | Scr Mat Min Slots Evolved . | . . . Power . | . . . Propulsion . | . . . Utility . | . . . Weapon . | . . . Parts Attached 14 | 2 3 9 Power 1 | . . 1 Engine 1 | . . 1 Core . | . . . Reactor . | . . . Propulsion 3 | 2 . 1 Treads 2 | 2 . . Leg . | . . . Wheel 1 | . . 1 Hover . | . . . Flight . | . . . Utility 4 | . 3 1 Device . | . . . Storage 3 | . 3 . Processor . | . . . Hackware . | . . . Protection 1 | . . 1 Artifact . | . . . Weapon 6 | . . 6 Energy Gun 4 | . . 4 Energy Cannon . | . . . Ballistic Gun 2 | . . 2 Ballistic Cannon . | . . . Launcher . | . . . Special Weapon . | . . . Impact Weapon . | . . . Slashing Weapon . | . . . Piercing Weapon . | . . . Special Melee Weapon . | . . . Unidentified Prototypes . | . . . Parts Lost 11 | . . 11 Power 2 | . . 2 Propulsion 2 | . . 2 Utility 1 | . . 1 Weapon 6 | . . 6 Highest Loss Streak 11 | . . 11 Average Slot Usage (%) 97 | . 97 98 Engine 13 | . 14 13 Treads 27 | . 28 27 Storage 26 | . 25 27 Energy Gun 14 | . 14 14 Ballistic Gun 14 | . 14 14 Naked Turns . | . . . Heaviest Build 76 | 9 69 76 Greatest Support 40 | 40 40 40 Greatest Overweight (x) 2 | . 1 2 Average Overweight (x) . | . . 1 Largest Inventory Capacity 20 | 6 20 20 Average Capacity 16 | 6 14 19 Most Carried 15 | 6 11 15 Average Carried 9 | 6 8 12 Final Capacity 20 | 6 20 12 Final Carried 11 | 6 11 9 Class Distribution -------------------- 54% | Hauler-Mutant 45% | Mutant Dominant Class ---------------- Mutant | -10/Materials Hauler-Mutant | -10/Mines Resources | -11 -10 -10 ----------- Run | Scr Mat Min Matter Collected 353 | 215 46 92 Remotely . | . . . Salvage Created 449 | . 362 87 Parts 25 | . 24 1 Haulers Intercepted 1 | . 1 . Recyclers Shooed . | . . . Parts Field Recycled . | . . . Retrieved Matter . | . . . Parts Self-Destructed . | . . . Prevented . | . . . Kills | -11 -10 -10 ------- Run | Scr Mat Min Combat Hostiles Destroyed 13 | . 7 6 Guns 13 | . 7 6 Classes Destroyed 5 | . 4 1 Hauler 1 | . 1 . Recycler 1 | . 1 . Swarmer 4 | . 3 1 Grunt 4 | . 4 . Assembled 5 | . . 5 Best Kill Streak 6 | . 4 6 Combat Bots Only 6 | . 3 6 Max Kills in Single Turn 1 | . 1 1 Gunslinging . | . . . Exploded . | . . . Melee . | . . . Uniques/NPCs Destroyed . | . . . Combat | -11 -10 -10 -------- Run | Scr Mat Min Damage Taken 1268 | . 303 965 Core 278 | . 68 210 Absorbed by Shields . | . . . Core Remaining (%) 100 | 100 . . Volleys Fired 47 | . 32 15 Largest 2 | . 2 2 Hottest 79 | . 60 79 Shots Fired 92 | . 64 28 Gun 92 | . 64 28 Cannon . | . . . Launcher . | . . . Special . | . . . Kinetic 46 | . 32 14 Thermal 46 | . 32 14 Explosive . | . . . Electromagnetic . | . . . Robot Hit Streak 10 | . 10 5 Robot Miss Streak 3 | . 3 2 Penetration Max . | . . . Secondary Targets 4 | . . 4 Max Gunslinging Chain 1 | . . 1 Shots Hit Robots 51 | . 35 16 Core Hits 31 | . 18 13 Critical Hits . | . . . Critical Kills . | . . . Critical Parts Destroyed . | . . . Melee Attacks . | . . . Impact . | . . . Slashing . | . . . Piercing . | . . . Sneak Attacks . | . . . Combat Hostiles . | . . . Follow-up Attacks . | . . . Damage Inflicted 669 | . 380 289 Guns 655 | . 366 289 Cannons . | . . . Explosions . | . . . Melee . | . . . Ramming 14 | . 14 . Kinetic 233 | . 110 123 Thermal 422 | . 256 166 Explosive . | . . . Electromagnetic . | . . . Impact . | . . . Slashing . | . . . Piercing . | . . . Highest Corruption 4 | . . 4 Average Corruption 4 | . . 4 Corruption Purged . | . . . Effects 1 | . . 1 Targeting Errors 1 | . . 1 Overload Shots . | . . . Overflow Damage . | . . . Projectiles . | . . . Explosions . | . . . Melee . | . . . Knockbacks . | . . . Impact . | . . . Kinetic . | . . . Secondary . | . . . Self-Inflicted Damage . | . . . Shots . | . . . Rammed 1 | . 1 . Targets Rammed 1 | . 1 . Kicked . | . . . Crushed . | . . . Highest Temperature 161 | . 97 161 Average Temperature 48 | . 32 76 Received Heat Transfer 126 | . 126 . Siege Activations . | . . . Robots Corrupted . | . . . Combat Hostiles . | . . . Parts Fried . | . . . Impact Corruptions . | . . . Robots Melted . | . . . Combat Hostiles . | . . . Parts Melted . | . . . Heat Transferred 1019 | . 575 444 Parts Sabotaged . | . . . Parts Stolen . | . . . Parts Stripped . | . . . Power Chain Reactions . | . . . Missiles Intercepted . | . . . Alert | -11 -10 -10 ------- Run | Scr Mat Min Peak Influence 110 | . 110 20 Average Influence 25 | . 31 9 Maximum Alert Level . | . . . Low Security (%) 100 | 100 100 100 Level 1 . | . . . Level 2 . | . . . Level 3 . | . . . Level 4 . | . . . Level 5 . | . . . High Security . | . . . Max Security . | . . . Squads Dispatched 2 | . 2 . Investigation 1 | . 1 . Extermination . | . . . Reinforcement 1 | . 1 . Assault . | . . . Garrison . | . . . Intercept . | . . . Construction Impeded . | . . . Haulers Reinforced . | . . . Stealth | -11 -10 -10 --------- Run | Scr Mat Min Distress Signals . | . . . Communications Jammed . | . . . Distress Signals . | . . . Times Spotted 32 | . 20 12 Peak Tracking Total 7 | . 7 7 Tactical Retreats 1 | . . 1 Traps | -11 -10 -10 ------- Run | Scr Mat Min Traps Triggered 1 | . 1 . Indirectly . | . . . Trap Hack Attempts . | . . . Triggered . | . . . Disarmed . | . . . Reprogrammed . | . . . Reused . | . . . Traps Extracted . | . . . Installed . | . . . Triggered . | . . . Machines | -11 -10 -10 ---------- Run | Scr Mat Min Machines Disabled . | . . . Max in Single Turn . | . . . Machines Sabotaged . | . . . Garrisons Compromised . | . . . Overloaded Fab Kills . | . . . Fab Network Shutdowns . | . . . Hacking | -11 -10 -10 --------- Run | Scr Mat Min Machines Accessed 5 | . 5 . Terminals 5 | . 5 . Fabricators . | . . . Repair Stations . | . . . Recycling Units . | . . . Scanalyzers . | . . . Garrison Access . | . . . Total Hacks 16 | . 16 . Successful 10 | . 10 . Failed 6 | . 6 . Catastrophic . | . . . Database Lockouts . | . . . Manual 9 | . 9 . Terminals 16 | . 16 . Fabricators . | . . . Repair Stations . | . . . Recycling Units . | . . . Scanalyzers . | . . . Garrison Access . | . . . Terminal Hacks 7 | . 7 . Prototype ID Bank 1 | . 1 . Branch Access Points 1 | . 1 . Unreport Threat 1 | . 1 . Locate Traps 3 | . 3 . Registered Components 1 | . 1 . Fabricator Hacks . | . . . Repair Station Hacks . | . . . Recycling Unit Hacks . | . . . Scanalyzer . | . . . Garrison Access Hacks . | . . . Unauthorized Hacks 3 | . 3 . Terminals 3 | . 3 . Track 3 | . 3 . Fabricators . | . . . Repair Stations . | . . . Recycling Units . | . . . Scanalyzers . | . . . Garrison Access . | . . . Data Cores Recovered . | . . . Used . | . . . Hacking Detections 5 | . 5 . Full Trace Events . | . . . Feedback Events . | . . . Feedback Blocked . | . . . Robot Schematics Acquired . | . . . Robots Built . | . . . Matter . | . . . Time . | . . . Total Robot Build Rating . | . . . Part Schematics Acquired . | . . . Parts Built . | . . . Matter . | . . . Time . | . . . Total Part Build Rating . | . . . Parts Repaired . | . . . Time . | . . . Parts Recycled . | . . . Recycled Matter . | . . . Retrieved Matter . | . . . Retrieved Components . | . . . Parts Scanalyzed . | . . . Part Schematics Acquired . | . . . Parts Damaged . | . . . Bothacking | -11 -10 -10 ------------ Run | Scr Mat Min Used RIF Installer . | . . . Robots Hacked . | . . . Non-combat . | . . . Combat . | . . . Robot Hacks Applied . | . . . Relay Couplers Released . | . . . Robots Rewired . | . . . Allies Hacked . | . . . Hacks Repelled . | . . . Allies | -11 -10 -10 -------- Run | Scr Mat Min Total Allies . | . . . Largest Group . | . . . Highest-Rated Group . | . . . Highest-Rated Ally . | . . . Total Orders . | . . . Ally Attacks . | . . . Total Damage . | . . . Kills . | . . . Allies Corrupted . | . . . Allies Melted . | . . . Intel | -11 -10 -10 ------- Run | Scr Mat Min Robot Analysis Total . | . . . Derelict Logs Recovered 1 | . . 1 Drone Launches . | . . . Drone Recoveries . | . . . Exploration | -11 -10 -10 ------------- Run | Scr Mat Min Turns Passed 1528 | 13 1086 429 Spaces Moved 720 | 7 513 200 Core . | . . . Treads 714 | 7 513 194 Legs . | . . . Wheels 6 | . . 6 Hover . | . . . Flight . | . . . Fastest Speed 110 | 160 160 110 Average Speed 176 | 160 176 177 Slowest Speed 180 | 160 180 180 Overloaded Moves . | . . . Propulsion Burnouts . | . . . Robots Hopped . | . . . Cave-ins Triggered . | . . . Exploration Rate (%) 43 | 3 77 51 Regions Visited 2 Branch Regions 1 Pre-discovered Areas 1 | . . 1 Known Exits Taken 1 | . 1 . Unknown Exits Taken 1 | 1 . . Scrap Searched . | . . . Spaces Dug . | . . . Terrain Destroyed . | . . . Melee . | . . . Projectile . | . . . AOE . | . . . Actions | -11 -10 -10 --------- Run | Scr Mat Min Total 888 | 8 636 244 Wait 96 | . 80 16 Move 718 | 6 512 200 Hop . | . . . Pick Up 10 | . 6 4 Fast Attach 1 | . 1 . Attach 6 | . . 6 Detach . | . . . Swap 7 | 2 2 3 Drop 2 | . 2 . Fire 47 | . 32 15 Melee . | . . . Ram . | . . . Kick . | . . . Crush 1 | . 1 . Escape Stasis . | . . . Rewire . | . . . Trap . | . . . Miscellaneous . | . . . Route ------- -11/Scrapyard -10/Materials (discovered 3 exits: [*Mat x2] / *Min) -10/Mines History --------- Turn | Location | Event 4 | -11/Scrapyard | Discovered new exit (range 3) 14 | -11/Scrapyard | Entered Materials 131 | -10/Materials | Discovered new exit (range 16) 306 | -10/Materials | Build established: Mutant 327 | -10/Materials | Discovered new exit (range 4) 485 | -10/Materials | Identified exit to Mines 765 | -10/Materials | Discovered new exit (range 16) 997 | -10/Materials | Build established: Hauler-Mutant 1100 | -10/Materials | Entered Mines 1281 | -10/Mines | Joined a pair of Derelicts in attacking an 0b10 outpost 1289 | -10/Mines | Learned location of Storage (-7) 1434 | -10/Mines | Assembled infested the area 1479 | -10/Mines | Core integrity fell below 50% 1527 | -10/Mines | Core integrity fell below 20% 1529 | -10/Mines | Destroyed by D-53 Grenadier with Mini Grenade Launcher Last Messages --------------- 01500_ K-01 Serf collects debris. 01509_ Imp. Ion Engine destroyed. 01510_ U-05 Engineer builds a Wall. 01512_ Hvy. Assault Rifle destroyed. 01514_ U-05 Engineer lays Concrete. 01514_ Lgt. Treads destroyed. 01515_ U-05 Engineer lays Concrete. 01516_ The unstable cave ceiling collapses. 01516_ U-05 Engineer lays Concrete. 01517_ Lgt. Treads destroyed. 01518_ U-05 Engineer lays Concrete. 01519_ U-05 Engineer builds a Wall. 01520_ Med. Laser destroyed. 01521_ K-01 Serf collects debris. 01522_ Sml. Laser destroyed. 01523_ U-05 Engineer builds a Wall. 01526_ The unstable cave ceiling collapses. 01526_ Lgt. Assault Rifle destroyed. 01526_ Lgt. Armor Plating destroyed. 01527_ U-05 Engineer lays Concrete. Map ----- +----------------------------------------------------+ | ?????????????????????????????????????????###????## | | ????????????????????????????????????????## #??## | | ???????????????????????????????????????## ### | | ???????????????????????????????????????# | | ???????????????????????????????????????# | | ???????????????????????????????????????# | | ???????????????????????????????????????# | | ???????????????????????????????????????#### | | ??????????????????????????????????????????##### | | ??????????????????????????????????????????????## | | ???????????????????????????????????????????????### | | ?????????????????????????????????????????????????? | | ?????????????????????????????????????????????????? | | ??????????????????????????######?????????????????? | | ???????????????????###??### ##???????????????## | | ???????????????????# ### ##??????????????# | | ???????????????????# #####??????????# | | ???????????????##### ###????##### | | ???????????????# ###??# | | ???????????????????# % #### #### | | ???????????????# %## < [ ## #### | | ???????????????# $ # !% | | ?????????????# # #### % %! | | ????????????? ?## d #?## ##### | | ??????????????# # # ## d #?# % ###? | | ?????????? % k % u @ ##?# #? | | ?????????? t ##??## ### #? | | ????????????########r ####????#####?## %#? | | ????????????????? # #??????????????# % ## | | ????????????????# ##??????????????# # | | ????????????????#### #???????????????## # | | ???????????????????#### #????????????????# # | | ??????????????????????# ##????????????????# # | | ??????????????????????# ??????????????????# # | | ?????????????????????? $?????????????????## | | ??????????????????????###????????????????## | | ????????????????????????????????????????## | | ???????????????????????????????????????## | | ???????????????????????????????????????# | | ???????????????????????????????????????# | | ???????????????????????????????????????## | | ????????????????????????????????????????## | | ?????????????????????????????????????????#### | | ????????????????????????????????????????????## | | ?????????????????????????????????????????????# | | ?????????????????????????????????????????????## | | ???????????????????????????????????????????????### | | ?????????????????????????????????????????????????? | | ?????????????????????????????????????????????????? | | | +----------------------------------------------------+ Best States ------------- Heat Dissipation 25 Energy Generation 12 Energy Capacity 265 Matter Stores 300 Matter Capacity 300 Sight Range 16 Terrain Scan Density 10 Armor Coverage 150 Evasion (%) 40 Recoil Reduction 2 Item Schematics ----------------- None Robot Schematics ------------------ None Fabricated ------------ Nothing Alien Tech Used ----------------- None Achievements -------------- None Challenges ------------ None Game ------ Seed DamperSurveybotChip Manual? 0 Play Time 00:14:51 Cumulative 193.1 hours Start 2020.08.29 @ 14:42:10 End 2020.08.29 @ 14:56:35 Sessions 1 Manual Loads 0 Difficulty Rogue Special Mode None Game No. 112 Rogue 112 Adventurer 0 Explorer 0 Win Type - Total 8 Types 7/0/1/0/0/0/0 Lore% 64 Gallery% 74 Achievement% 57 Wizard Run 0 Options --------- ASCII 0 Keyboard 0 Movement Mouse Keybinds 0 Fullscreen 1 Font 18/SmallcapsGlow Map View 76x50 Tactical HUD 1 Map Filters NONE Filters NONE Steam 1 RUN: def7fd95-3eb4-4e45-81b3-cf6ab1b80364